bitfinex-derivatives/quotes_SOLF0:USTF0_20250117
["timestamp","ask_amount","ask_price","bid_price","bid_amount"]
[1737091293614,7.47690362,212.59,212.52,8.98560362]
[1737091294304,7.47690362,212.59,212.55,4.7053]
[1737091294509,7.47690362,212.59,212.52,8.98560362]
[1737091294912,7.47690362,212.59,212.55,4.7053]
[1737091301318,7.47690362,212.59,212.56,4.7052]
[1737091302121,154.48124142,212.72,212.55,7.47690362]
[1737091302315,154.48124142,212.72,212.57,7.47690362]
[1737091302316,7.47690362,212.65,212.57,7.47690362]
[1737091302719,7.47690362,212.65,212.62,4.7039]
[1737091308022,12.17970362,212.67,212.62,4.7039]
[1737091309219,7.47690362,212.67,212.62,4.7039]
[1737091309424,4.703,212.66,212.62,4.7039]
[1737091311825,7.47690362,212.67,212.6,2.9054]
[1737091311826,7.47690362,212.72,212.65,7.47690362]
[1737091312428,7.47690362,212.72,212.68,4.7025]
[1737091313425,12.17860362,212.72,212.68,4.7025]
[1737091314029,12.17860362,212.72,212.65,7.47690362]
[1737091314030,12.17860362,212.72,212.66,4.7028]
[1737091314729,12.17860362,212.72,212.67,4.7028]
[1737091317035,4.7019,212.71,212.67,4.7028]
[1737091319235,7.47690362,212.68,212.61,1.4455]
[1737091319436,7.47690362,212.66,212.61,1.4455]
[1737091321035,12.18010362,212.66,212.61,6.1494]
[1737091324336,7.47690362,212.62,212.49,6.49294646]
[1737091324639,7.47690362,212.6,212.52,7.47690362]
[1737091324838,12.18130362,212.6,212.55,4.7053]
[1737091325436,12.18170362,212.58,212.53,4.7059]
[1737091325638,12.18170362,212.58,212.5,11.82680362]
[1737091327239,12.18170362,212.58,212.52,4.7061]
[1737091327637,7.47690362,212.56,212.52,4.7061]
[1737091329641,7.47690362,212.56,212.5,9.0563]
[1737091330642,7.47690362,212.56,212.51,4.7062]
[1737091332544,7.47690362,212.57,212.52,4.7061]
[1737091333037,7.47690362,212.57,212.5,4.3499]
[1737091333243,7.47690362,212.59,212.53,4.7059]
[1737091335343,12.18150362,212.59,212.53,4.7059]
[1737091337046,0.3202,212.72,212.55,7.47690362]
[1737091337047,154.48124142,212.71,212.55,7.47690362]
[1737091337245,7.47690362,212.63,212.57,7.47690362]
[1737091337442,154.48124142,212.71,212.59,7.47690362]
[1737091337645,7.47690362,212.65,212.6,4.7043]
[1737091338250,12.18020362,212.65,212.6,4.7043]
[1737091339038,7.47690362,212.65,212.6,4.7043]
[1737091340545,4.7028,212.67,212.62,4.7039]
[1737091340846,7.47690362,212.68,212.61,7.47690362]
[1737091341248,7.47690362,212.68,212.63,4.7037]
[1737091341450,7.47690362,212.68,212.61,7.47690362]
[1737091343153,7.47690362,212.68,212.64,4.7034]
[1737091345853,7.47690362,212.66,212.62,4.7037]
[1737091348354,7.47690362,212.64,212.62,4.7037]
[1737091348554,7.47690362,212.66,212.62,4.7037]
[1737091351461,7.47690362,212.66,212.63,4.7037]
[1737091356563,12.17950362,212.68,212.63,4.7037]
[1737091358767,4.76,212.75,212.67,4.7027]
[1737091358961,4.76,212.75,212.64,7.47690362]
[1737091358962,7.47690362,212.73,212.66,7.47690362]
[1737091359963,7.47690362,212.73,212.69,4.7022]
[1737091360654,7.47690362,212.73,212.7,4.7021]
[1737091362662,7.47690362,212.73,212.68,4.7024]
[1737091364766,7.47690362,212.73,212.69,4.7023]
[1737091367861,63.92998777,212.77,212.68,7.47690362]
[1737091368070,12.17790362,212.76,212.68,7.47690362]
[1737091368368,7.47690362,212.76,212.7,7.47690362]
[1737091368569,7.47690362,212.76,212.73,4.7014]
[1737091369167,7.47690362,212.76,212.7,7.47690362]
[1737091369369,7.47690362,212.76,212.74,4.7011]
[1737091370368,7.47690362,212.78,212.75,4.701]
[1737091370563,4.7002,212.79,212.75,4.701]
[1737091372179,4.7002,212.79,212.74,4.7012]
[1737091372882,7.47690362,212.8,212.76,4.7008]
[1737091373077,7.47690362,212.8,212.74,7.47690362]
[1737091373978,7.47690362,212.82,212.74,7.47690362]
[1737091374181,12.17660362,212.82,212.77,4.7006]
[1737091374886,12.17660362,212.82,212.76,7.47690362]
[1737091375081,12.17660362,212.82,212.78,4.7003]
[1737091377883,12.17660362,212.82,212.77,4.7006]
[1737091379083,4.6997,212.81,212.77,4.7006]
[1737091379285,4.6997,212.81,212.76,7.47690362]
[1737091381282,4.6997,212.81,212.76,12.17770362]
[1737091383485,7.47690362,212.82,212.74,7.47690362]
[1737091383687,12.17750362,212.78,212.72,12.17850362]
[1737091383982,7.47690362,212.78,212.7,7.47690362]
[1737091384186,7.47690362,212.72,212.68,2.966]
[1737091384486,7.47690362,212.72,212.68,1.4677]
[1737091385181,4.702,212.71,212.68,1.4677]
[1737091387681,4.7029,212.67,212.6,4.7043]
[1737091387879,7.47690362,212.63,212.6,4.7043]
[1737091388585,7.47690362,212.65,212.6,4.7043]
[1737091389087,4.7036,212.64,212.58,12.18150362]
[1737091389981,4.7037,212.63,212.58,7.47690362]
[1737091390384,12.18060362,212.63,212.58,7.47690362]
[1737091392189,12.18060362,212.63,212.58,12.18170362]
[1737091392789,7.47690362,212.63,212.58,12.18170362]
[1737091393885,12.18060362,212.63,212.57,4.705]
[1737091394681,4.7039,212.62,212.56,7.47690362]
[1737091395291,4.7042,212.61,212.56,12.18210362]
[1737091396692,7.47690362,212.65,212.59,4.7046]
[1737091396887,0.3189,212.73,212.6,7.47690362]
[1737091397393,7.47690362,212.68,212.6,7.47690362]
[1737091398090,7.47690362,212.66,212.58,7.47690362]
[1737091398891,7.47690362,212.66,212.59,4.7045]
[1737091399386,4.7024,212.69,212.59,4.7045]
[1737091399591,7.47690362,212.77,212.67,7.47690362]
[1737091399894,7.47690362,212.77,212.7,7.47690362]
[1737091400390,7.47690362,212.77,212.7,12.17890362]
[1737091402190,154.48124142,212.85,212.76,12.17770362]
[1737091402395,154.48124142,212.85,212.79,7.47690362]
[1737091402694,161.95814504,212.85,212.77,7.47690362]
[1737091403188,4.6995,212.82,212.77,7.47690362]
[1737091406397,7.47690362,212.81,212.71,1.4942]
[1737091406695,4.7004,212.78,212.73,4.7015]
[1737091407689,4.7006,212.77,212.71,6.1959]
[1737091407895,4.7006,212.77,212.71,12.17860362]
[1737091409193,4.7006,212.77,212.72,4.7017]
[1737091410596,4.7008,212.76,212.71,7.47690362]
[1737091411092,4.7008,212.76,212.71,12.17880362]
[1737091413800,4.7008,212.76,212.71,4.7019]
[1737091414000,4.7008,212.76,212.71,12.17880362]
[1737091415903,4.7012,212.75,212.69,7.47690362]
[1737091417200,4.7012,212.75,212.69,12.17920362]
[1737091418505,12.17810362,212.75,212.69,12.17920362]
[1737091418804,7.47690362,212.75,212.69,7.47690362]
[1737091419007,4.7016,212.73,212.68,2.9997]
[1737091421204,4.7016,212.73,212.68,7.7023]
[1737091423809,4.7007,212.77,212.71,12.17860362]
[1737091426008,4.7008,212.76,212.72,4.7017]
[1737091426809,4.7003,212.79,212.74,4.7012]
[1737091428007,12.17720362,212.79,212.74,4.7012]
[1737091428207,4.7004,212.78,212.74,4.7012]
[1737091428412,7.47690362,212.81,212.75,4.701]
[1737091428811,7.47690362,212.83,212.74,7.47690362]
[1737091429012,7.47690362,212.83,212.77,4.7004]
[1737091429508,4.6991,212.84,212.79,4.7001]
[1737091429710,0.3174,212.9,212.78,7.47690362]
[1737091429711,7.47690362,212.86,212.78,7.47690362]
[1737091430011,7.47690362,212.82,212.74,7.47690362]
[1737091431012,4.6997,212.81,212.76,4.7007]
[1737091431707,7.47690362,212.82,212.74,7.47690362]
[1737091431914,4.6999,212.8,212.74,7.47690362]
[1737091433213,4.6999,212.8,212.75,4.7009]
[1737091433810,7.47690362,212.82,212.76,7.47690362]
[1737091433811,4.6997,212.81,212.76,7.47690362]
[1737091435918,4.6997,212.81,212.76,12.17770362]
[1737091440714,7.47690362,212.8,212.69,1.4444]
[1737091440913,4.7007,212.77,212.72,4.7015]
[1737091441113,7.47690362,212.8,212.71,7.47690362]
[1737091442117,4.7004,212.78,212.73,4.7015]
[1737091443920,4.7007,212.77,212.72,4.7017]
[1737091463544,4.7007,212.77,212.72,12.17860362]
[1737091464846,4.7007,212.77,212.72,4.7017]
[1737091466647,4.7008,212.76,212.71,4.7019]
[1737091468149,7.47690362,212.78,212.71,12.17880362]
[1737091468348,4.7006,212.77,212.71,12.17880362]
[1737091468747,4.7006,212.77,212.71,4.7019]
[1737091471643,5.57884799,212.84,212.74,7.47690362]
[1737091471849,7.47690362,212.83,212.74,7.47690362]
[1737091472049,7.47690362,212.83,212.76,7.47690362]
[1737091472653,7.47690362,212.83,212.76,12.17770362]
[1737091474046,4.6998,212.81,212.76,12.17770362]
[1737091474555,7.47690362,212.79,212.75,1.4702]
[1737091474756,4.7004,212.78,212.75,1.4702]
[1737091478659,7.47690362,212.79,212.71,4.7018]
[1737091478858,7.47690362,212.77,212.71,4.7018]
[1737091483255,4.7008,212.76,212.69,7.6513]
[1737091483962,4.7008,212.76,212.7,4.7021]
[1737091486062,4.7008,212.76,212.69,2.9491]
[1737091486263,4.7008,212.76,212.69,10.42600362]
[1737091486764,4.7008,212.76,212.69,15.12830362]
[1737091488267,5.26014553,212.82,212.71,7.47690362]
[1737091488468,7.47690362,212.8,212.73,7.47690362]
[1737091489267,7.47690362,212.8,212.69,2.9491]
[1737091489466,12.17690362,212.8,212.73,7.47690362]
[1737091489968,12.17690362,212.8,212.74,4.7012]
[1737091492970,12.17690362,212.8,212.75,4.701]
[1737091495679,4.7003,212.79,212.75,4.701]
[1737091499890,4.7003,212.79,212.74,4.7013]
[1737091501893,7.47690362,212.8,212.74,4.7013]
[1737091502089,4.7005,212.78,212.74,4.7013]
[1737091502588,7.47690362,212.78,212.69,10.42600362]
[1737091502790,7.47690362,212.76,212.69,2.9491]
[1737091503293,4.7014,212.74,212.69,2.9491]
[1737091504094,4.7014,212.74,212.7,4.7021]
[1737091508402,12.17800362,212.76,212.7,12.17900362]
[1737091508796,7.47690362,212.76,212.7,12.17900362]
[1737091509394,7.47690362,212.78,212.71,8.65316386]
[1737091509698,7.47690362,212.78,212.71,4.702]
[1737091510098,7.47690362,212.8,212.72,11.42750172]
[1737091510398,7.47690362,212.8,212.72,7.47690362]
[1737091511697,7.47690362,212.78,212.72,7.47690362]
[1737091512105,4.7007,212.77,212.73,4.7015]
[1737091513403,4.7007,212.77,212.72,7.47690362]
[1737091513603,7.47690362,212.78,212.72,12.17860362]
[1737091513805,4.7009,212.76,212.72,12.17860362]
[1737091514902,7.47690362,212.78,212.72,12.17860362]
[1737091514903,12.17750362,212.78,212.72,12.17860362]
[1737091515404,7.47690362,212.78,212.72,12.17860362]
[1737091515706,64.88518039,212.84,212.72,12.17860362]
[1737091515902,60.14518039,212.84,212.76,7.47690362]
[1737091516204,7.47690362,212.83,212.76,7.47690362]
[1737091516401,4.6998,212.81,212.77,4.7006]
[1737091518909,4.6996,212.82,212.78,4.7004]
[1737091520399,4.6993,212.83,212.78,12.17730362]
[1737091520613,4.6993,212.83,212.79,4.7001]
[1737091521299,60.14518039,212.84,212.74,4.74]
[1737091521502,7.47690362,212.78,212.7,7.47690362]
[1737091521703,7.47690362,212.78,212.71,3.94775306]
[1737091521900,7.47690362,212.78,212.72,3.94775306]
[1737091522203,7.47690362,212.78,212.7,7.47690362]
[1737091522504,7.47690362,212.78,212.71,3.94838586]
[1737091522705,7.47690362,212.78,212.7,4.702]
[1737091522910,7.47690362,212.76,212.7,4.702]
[1737091523209,4.7002,212.79,212.74,4.7013]
[1737091527306,7.47690362,212.8,212.74,4.7013]
[1737091527512,4.7004,212.78,212.74,4.7013]
[1737091531117,60.14518039,212.84,212.77,7.47690362]
[1737091531309,67.62208401,212.84,212.77,7.47690362]
[1737091531509,4.6997,212.82,212.77,7.47690362]
[1737091532315,67.62208401,212.84,212.77,7.47690362]
[1737091532513,4.6998,212.81,212.77,7.47690362]
[1737091532710,60.14518039,212.84,212.77,12.17740362]
[1737091532911,67.62208401,212.84,212.77,7.47690362]
[1737091533312,7.47690362,212.82,212.74,12.17800362]
[1737091533713,4.7003,212.79,212.74,7.47690362]
[1737091535211,4.7007,212.77,212.7,7.47690362]
[1737091535417,4.7007,212.77,212.71,3.95073878]
[1737091535612,4.7007,212.77,212.72,3.95073878]
[1737091535814,4.7007,212.77,212.7,7.47690362]
[1737091536016,4.7007,212.77,212.71,3.94995892]
[1737091536318,4.7007,212.77,212.72,8.65165892]
[1737091536523,4.7007,212.77,212.72,4.7017]
[1737091538321,7.47690362,212.78,212.7,4.702]
[1737091538519,7.47690362,212.76,212.71,3.95037533]
[1737091538721,7.47690362,212.76,212.69,10.42600362]
[1737091538922,7.47690362,212.76,212.7,3.95075325]
[1737091539123,4.7011,212.75,212.71,3.95075325]
[1737091539423,4.7011,212.75,212.7,4.7021]
[1737091539620,4.7011,212.75,212.71,3.95074576]
[1737091539923,4.7011,212.75,212.7,4.7021]
[1737091540125,4.7011,212.75,212.71,3.95074946]
[1737091540323,4.7011,212.75,212.7,4.7021]
[1737091540623,4.7011,212.75,212.71,3.95078409]
[1737091540822,4.7011,212.75,212.7,4.7021]
[1737091541015,4.7011,212.75,212.71,3.95074812]
[1737091541220,4.7011,212.75,212.7,4.7021]
[1737091541414,4.7011,212.75,212.71,3.95078896]
[1737091541619,7.47690362,212.74,212.69,1.5047]
[1737091541921,7.47690362,212.74,212.59,78.40045203]
[1737091541922,7.47690362,212.72,212.64,7.47690362]
[1737091542123,7.47690362,212.72,212.65,3.95188885]
[1737091542322,7.47690362,212.72,212.66,3.95188885]
[1737091542625,7.47690362,212.72,212.67,3.95188885]
[1737091542822,7.47690362,212.72,212.68,3.95188885]
[1737091543024,7.47690362,212.72,212.64,7.47690362]
[1737091543326,4.702,212.71,212.65,8.65500214]
[1737091543521,4.702,212.71,212.66,3.95170214]
[1737091543720,4.702,212.71,212.67,3.95170214]
[1737091543919,4.702,212.71,212.65,4.7033]
[1737091544122,4.702,212.71,212.66,3.95242891]
[1737091544423,4.702,212.71,212.66,4.703]
[1737091545930,12.17910362,212.7,212.65,4.7033]
[1737091549026,7.47690362,212.68,212.63,4.7035]
[1737091550226,4.7029,212.67,212.62,7.707]
[1737091550426,7.47690362,212.66,212.62,7.707]
[1737091552930,154.48124142,212.75,212.62,7.707]
[1737091552931,7.47690362,212.68,212.62,10.48000362]
[1737091553121,154.48124142,212.75,212.64,4.7035]
[1737091553122,12.17930362,212.7,212.64,4.7035]
[1737091553558,12.17930362,212.7,212.62,10.48000362]
[1737091553758,12.17930362,212.7,212.65,4.7032]
[1737091555149,4.7019,212.72,212.67,4.7028]
[1737091555386,7.47690362,212.72,212.67,4.7028]
[1737091556647,12.17870362,212.72,212.67,4.7028]
[1737091557454,12.17870362,212.72,212.68,4.7026]
[1737091558056,4.7018,212.72,212.68,4.7026]
[1737091558254,12.17870362,212.72,212.68,4.7026]
[1737091560151,12.17870362,212.72,212.67,4.7028]
[1737091560344,12.17910362,212.7,212.64,7.47690362]
[1737091560648,7.47690362,212.7,212.64,7.47690362]
[1737091563140,7.47690362,212.7,212.66,4.703]
[1737091563642,7.47690362,212.7,212.67,4.7028]
[1737091564944,7.47690362,212.7,212.66,4.7031]
[1737091589357,7.47690362,212.7,212.67,4.7028]
[1737091590567,154.48124142,212.75,212.67,4.7028]
[1737091590867,7.47690362,212.71,212.67,4.7028]
[1737091595767,4.7022,212.7,212.63,1.5765]
[1737091595966,7.47690362,212.69,212.64,3.96791958]
[1737091596166,7.47690362,212.69,212.65,3.96791958]
[1737091596364,7.47690362,212.69,212.63,1.5765]
[1737091596565,7.47690362,212.69,212.64,3.9681284]
[1737091596868,7.47690362,212.69,212.65,3.9681284]
[1737091597060,7.47690362,212.69,212.66,3.96824999]
[1737091597264,7.47690362,212.69,212.63,1.5765]
[1737091597565,7.47690362,212.69,212.64,3.96848322]
[1737091597869,7.47690362,212.69,212.65,3.96848322]
[1737091598063,7.47690362,212.69,212.66,8.67158322]
[1737091598364,7.47690362,212.69,212.66,4.7031]
[1737091598571,7.47690362,212.69,212.63,1.5765]
[1737091598760,7.47690362,212.65,212.64,3.96863987]
[1737091599465,7.47690362,212.65,212.64,3.96935926]
[1737091601574,7.47690362,212.65,212.62,1.4378]
[1737091601873,7.47690362,212.65,212.63,3.96732597]
[1737091602074,7.47690362,212.65,212.62,6.1417]
[1737091602268,7.47690362,212.65,212.63,3.96574325]
[1737091602469,7.47690362,212.65,212.62,6.1417]
[1737091602670,7.47690362,212.65,212.63,3.96529924]
[1737091602873,7.47690362,212.65,212.62,6.1417]
[1737091603172,7.47690362,212.65,212.63,3.96489545]
[1737091603474,7.47690362,212.65,212.62,6.1417]
[1737091603669,7.47690362,212.65,212.63,3.96397672]
[1737091603874,12.18020362,212.65,212.6,4.7044]
[1737091604074,7.47690362,212.63,212.61,3.96383765]
[1737091604374,7.47690362,212.63,212.62,3.96383765]
[1737091605477,12.18060362,212.63,212.62,3.96383765]
[1737091606070,4.704,212.62,212.57,7.7275]
[1737091606271,7.47690362,212.61,212.58,3.96559465]
[1737091606472,7.47690362,212.61,212.59,3.96559465]
[1737091606669,7.47690362,212.61,212.57,6.2697]
[1737091606872,7.47690362,212.61,212.58,3.96438386]
[1737091607074,7.47690362,212.61,212.59,3.96438386]
[1737091607270,7.47690362,212.61,212.57,6.2697]
[1737091607472,7.47690362,212.61,212.58,3.9629743]
[1737091607678,7.47690362,212.61,212.57,6.2697]
[1737091607876,7.47690362,212.61,212.58,3.96289178]
[1737091608074,7.47690362,212.61,212.57,6.2697]
[1737091608278,7.47690362,212.61,212.58,3.96304286]
[1737091608480,7.47690362,212.61,212.57,6.2697]
[1737091608681,7.47690362,212.61,212.58,3.96171237]
[1737091608881,7.47690362,212.59,212.57,1.5649]
[1737091610084,4.7055,212.55,212.45,81.53177603]
[1737091610286,7.47690362,212.53,212.49,3.96203448]
[1737091610582,7.47690362,212.53,212.5,3.96203448]
[1737091610777,7.47690362,212.53,212.51,3.96203448]
[1737091611081,7.47690362,212.53,212.49,4.7068]
[1737091611280,7.47690362,212.53,212.5,3.96011988]
[1737091611483,7.47690362,212.53,212.49,4.7068]
[1737091612079,7.47690362,212.51,212.47,4.7071]
[1737091612278,7.47690362,212.51,212.48,3.95756859]
[1737091612479,7.47690362,212.51,212.49,3.95756859]
[1737091612676,7.47690362,212.51,212.47,4.7071]
[1737091612881,7.47690362,212.51,212.48,3.95488171]
[1737091613081,7.47690362,212.51,212.49,3.95488171]
[1737091613284,7.47690362,212.51,212.47,4.7071]
[1737091613486,7.47690362,212.51,212.48,3.95257548]
[1737091613686,7.47690362,212.51,212.46,4.7073]
[1737091613881,7.47690362,212.51,212.47,3.95251507]
[1737091614184,7.47690362,212.51,212.48,3.95251507]
[1737091614486,7.47690362,212.51,212.45,11.98730362]
[1737091614487,7.47690362,212.51,212.47,4.7071]
[1737091614693,7.47690362,212.51,212.48,3.9505608]
[1737091614883,7.47690362,212.51,212.47,4.7071]
[1737091615094,7.47690362,212.51,212.48,3.95031685]
[1737091615283,7.47690362,212.51,212.47,4.7071]
[1737091617021,7.47690362,212.49,212.46,4.7075]
[1737091622795,7.47690362,212.49,212.45,3.0486]
[1737091622996,7.47690362,212.49,212.44,4.7077]
[1737091623192,4.74,212.58,212.43,7.47690362]
[1737091623395,7.47690362,212.5,212.43,7.47690362]
[1737091624000,7.47690362,212.5,212.46,4.7073]
[1737091624295,7.47690362,212.5,212.43,7.47690362]
[1737091624495,7.47690362,212.51,212.45,7.47690362]
[1737091625399,7.47690362,212.51,212.43,7.47690362]
[1737091626800,7.47690362,212.49,212.43,7.47690362]
[1737091627105,7.47690362,212.49,212.46,4.7074]
[1737091629108,7.47690362,212.51,212.47,4.7071]
[1737091629609,7.47690362,212.49,212.4,3.0093]
[1737091629800,7.47690362,212.49,212.42,7.47690362]
[1737091630208,7.47690362,212.49,212.44,4.7079]
[1737091630710,7.47690362,212.49,212.42,7.47690362]
[1737091630910,7.47690362,212.49,212.45,4.7076]
[1737091631310,12.18370362,212.49,212.44,4.7079]
[1737091635416,7.47690362,212.49,212.45,4.7077]
[1737091635709,7.47690362,212.51,212.44,7.47690362]
[1737091637910,7.47690362,212.51,212.46,4.7075]
[1737091638113,7.47690362,212.51,212.44,7.47690362]
[1737091638311,7.47690362,212.52,212.44,7.47690362]
[1737091638817,7.47690362,212.52,212.45,1.5301]
[1737091639116,7.47690362,212.52,212.49,4.7068]
[1737091640611,4.7057,212.54,212.49,4.7068]
[1737091640909,0.3197,212.62,212.51,4.7063]
[1737091641120,7.47690362,212.56,212.48,7.47690362]
[1737091641318,7.47690362,212.57,212.5,7.47690362]
[1737091641615,7.47690362,212.57,212.52,4.7061]
[1737091643823,12.18200362,212.57,212.52,4.7061]
[1737091644018,7.47690362,212.55,212.52,4.7061]
[1737091646718,7.47690362,212.55,212.51,4.7063]
[1737091646923,7.47690362,212.53,212.51,4.7063]
[1737091647529,7.47690362,212.53,212.5,4.7066]
[1737091649324,7.47690362,212.53,212.48,1.4902]
[1737091649518,7.47690362,212.51,212.49,3.95626469]
[1737091649724,7.47690362,212.51,212.47,1.4428]
[1737091649923,7.47690362,212.51,212.48,3.95628941]
[1737091650121,7.47690362,212.51,212.49,3.95644544]
[1737091650324,7.47690362,212.51,212.47,1.4428]
[1737091650523,7.47690362,212.51,212.48,3.95879607]
[1737091650725,7.47690362,212.51,212.49,3.95879607]
[1737091650928,7.47690362,212.51,212.47,1.4428]
[1737091651128,7.47690362,212.51,212.48,3.95880799]
[1737091651430,7.47690362,212.51,212.47,6.15]
[1737091651630,7.47690362,212.51,212.48,3.96033821]
[1737091651831,7.47690362,212.51,212.49,3.96033821]
[1737091652123,7.47690362,212.51,212.47,6.15]
[1737091652331,7.47690362,212.51,212.48,3.96051084]
[1737091652528,7.47690362,212.51,212.49,3.96051084]
[1737091652733,7.47690362,212.51,212.47,6.15]
[1737091652925,7.47690362,212.51,212.48,3.96189248]
[1737091653228,7.47690362,212.51,212.49,3.96189248]
[1737091653428,7.47690362,212.51,212.5,3.96189248]
[1737091653735,7.47690362,212.51,212.5,3.96351582]
[1737091655230,12.18330362,212.51,212.5,3.96351582]
[1737091655440,7.47690362,212.51,212.45,4.7077]
[1737091655733,7.47690362,212.49,212.46,3.96557418]
[1737091655935,7.47690362,212.49,212.47,3.96557418]
[1737091656137,7.47690362,212.49,212.48,3.96557418]
[1737091656331,12.18370362,212.49,212.48,3.96557418]
[1737091657531,12.18370362,212.49,212.43,4.7081]
[1737091657737,7.47690362,212.47,212.44,3.96582508]
[1737091657936,7.47690362,212.47,212.45,3.96582508]
[1737091658231,7.47690362,212.47,212.46,3.96582508]
[1737091660841,12.18420362,212.47,212.46,3.96582508]
[1737091661741,7.47690362,212.47,212.42,4.7084]
[1737091661942,7.47690362,212.45,212.43,3.96597116]
[1737091662137,7.47690362,212.45,212.44,3.96597116]
[1737091665736,7.47690362,212.45,212.42,4.7084]
[1737091665942,7.47690362,212.45,212.43,3.96478537]
[1737091666242,7.47690362,212.45,212.44,3.96478537]
[1737091666438,7.47690362,212.47,212.44,8.67268537]
[1737091666634,7.47690362,212.47,212.45,3.96478537]
[1737091666947,7.47690362,212.47,212.44,4.7079]
[1737091667144,7.47690362,212.47,212.45,3.96450673]
[1737091667340,7.47690362,212.47,212.44,4.7079]
[1737091667540,7.47690362,212.47,212.45,3.96422365]
[1737091667743,7.47690362,212.47,212.44,4.7079]
[1737091667943,7.47690362,212.47,212.45,3.96421214]
[1737091668148,7.47690362,212.47,212.44,4.7079]
[1737091668340,7.47690362,212.47,212.45,3.96410659]
[1737091668542,7.47690362,212.47,212.44,4.7079]
[1737091668746,7.47690362,212.47,212.45,3.96399332]
[1737091668950,7.47690362,212.47,212.44,4.7079]
[1737091669150,7.47690362,212.47,212.45,3.96399332]
[1737091669357,7.47690362,212.47,212.44,4.7079]
[1737091669560,7.47690362,212.47,212.45,3.96375703]
[1737091669744,7.47690362,212.47,212.44,4.7079]
[1737091669951,7.47690362,212.47,212.45,3.9636765]
[1737091670243,7.47690362,212.47,212.44,4.7079]
[1737091670445,7.47690362,212.47,212.45,3.96351649]
[1737091670649,7.47690362,212.47,212.44,4.7079]
[1737091670854,7.47690362,212.47,212.45,3.96350499]
[1737091671154,7.47690362,212.47,212.44,4.7079]
[1737091671355,7.47690362,212.47,212.45,3.96336509]
[1737091671657,7.47690362,212.47,212.44,4.7079]
[1737091671856,7.47690362,212.47,212.45,3.96335359]
[1737091672048,7.47690362,212.47,212.44,4.7079]
[1737091672251,7.47690362,212.47,212.45,3.96335359]
[1737091672551,7.47690362,212.47,212.44,4.7079]
[1737091672751,7.47690362,212.47,212.45,3.96324006]
[1737091672952,7.47690362,212.47,212.44,4.7079]
[1737091673254,7.47690362,212.47,212.45,3.96323846]
[1737091673455,7.47690362,212.47,212.44,4.7079]
[1737091673656,7.47690362,212.47,212.45,3.96311007]
[1737091673846,7.47690362,212.47,212.44,4.7079]
[1737091674051,7.47690362,212.47,212.45,3.96310125]
[1737091674351,7.47690362,212.47,212.44,4.7079]
[1737091674555,7.47690362,212.47,212.45,3.96296997]
[1737091674865,7.47690362,212.47,212.44,4.7079]
[1737091675052,4.7065,212.51,212.46,4.7073]
[1737091675359,7.47690362,212.5,212.46,4.7073]
[1737091676158,7.47690362,212.5,212.47,3.96288352]
[1737091676360,12.18350362,212.5,212.46,4.7073]
[1737091676655,12.18350362,212.5,212.47,3.96268274]
[1737091676856,12.18350362,212.5,212.46,4.7073]
[1737091677056,12.18350362,212.5,212.47,3.96268536]
[1737091677255,12.18350362,212.5,212.46,4.7073]
[1737091677455,12.18350362,212.5,212.47,3.9628628]
[1737091677654,12.18350362,212.5,212.46,4.7073]
[1737091677856,12.18350362,212.5,212.47,3.96282669]
[1737091678055,12.18350362,212.5,212.46,4.7073]
[1737091678256,12.18350362,212.5,212.47,3.96282669]
[1737091678459,12.18350362,212.5,212.46,4.7073]
[1737091678654,12.18350362,212.5,212.47,3.96293834]
[1737091678855,12.18350362,212.5,212.46,4.7073]
[1737091679054,12.18350362,212.5,212.47,3.96293834]
[1737091679357,12.18350362,212.5,212.46,4.7073]
[1737091679557,12.18350362,212.5,212.47,3.9628976]
[1737091679757,12.18350362,212.5,212.46,4.7073]
[1737091680059,12.18350362,212.5,212.47,3.9628976]
[1737091680258,12.18350362,212.5,212.46,4.7073]
[1737091680459,12.18350362,212.5,212.47,3.96279171]
[1737091680659,12.18350362,212.5,212.46,4.7073]
[1737091680853,12.18350362,212.5,212.47,3.96278021]
[1737091681158,12.18350362,212.5,212.46,4.7073]
[1737091681460,4.7068,212.49,212.45,4.7077]
[1737091685562,7.47690362,212.5,212.42,7.47690362]
[1737091685763,7.47690362,212.5,212.43,3.96288764]
[1737091686060,7.47690362,212.5,212.44,3.96288764]
[1737091686260,7.47690362,212.5,212.45,3.96288764]
[1737091686559,7.47690362,212.5,212.46,3.96288764]
[1737091686761,7.47690362,212.5,212.42,7.47690362]
[1737091686959,7.47690362,212.5,212.43,3.96294505]
[1737091687257,4.7068,212.49,212.45,4.7075]
[1737091687462,4.7068,212.49,212.46,3.96294505]